[Event "*** Titled Tuesday Blitz"]
[Site "Chess.com"]
[Date "2021.02.09"]
[Round "3"]
[White "Srisshhhtea"]
[Black "jorquerino"]
[Result "1-0"]
[WhiteElo "2509"]
[BlackElo "2273"]
[TimeControl "180+1"]
[EndTime "10:28:38 PST"]
[Termination "Srisshhhtea won on time"]

1. d4 {[%clk 0:03:00.9]} 1... Nf6 {[%clk 0:02:57.1]} 2. c4 {[%clk 0:03:00.7]}
2... d6 {[%clk 0:02:55.9]} 3. Nf3 {[%clk 0:02:58.6]} 3... Nbd7 {[%clk
0:02:55.3]} 4. Nc3 {[%clk 0:02:42.5]} 4... e5 {[%clk 0:02:54.3]} 5. dxe5 {[%clk
0:02:37.6]} 5... dxe5 {[%clk 0:02:53.8]} 6. e4 {[%clk 0:02:38.2]} 6... Bb4
{[%clk 0:02:50.4]} 7. Qc2 {[%clk 0:02:27.4]} 7... O-O {[%clk 0:02:32.6]} 8. Be2
{[%clk 0:02:25.3]} 8... c6 {[%clk 0:02:09.8]} 9. O-O {[%clk 0:02:20.5]} 9... Qe7
{[%clk 0:02:02.1]} 10. Rd1 {[%clk 0:02:18.9]} 10... Nc5 {[%clk 0:01:52.3]} 11.
Bg5 {[%clk 0:02:12.3]} 11... Bg4 {[%clk 0:01:39.8]} 12. Nh4 {[%clk 0:01:41.1]}
12... Be6 {[%clk 0:01:08.4]} 13. Nf5 {[%clk 0:01:36.2]} 13... Bxf5 {[%clk
0:01:06.9]} 14. exf5 {[%clk 0:01:37.1]} 14... Bxc3 {[%clk 0:00:57.4]} 15. bxc3
{[%clk 0:01:34.2]} 15... Rad8 {[%clk 0:00:54.5]} 16. Rab1 {[%clk 0:01:33.5]}
16... b6 {[%clk 0:00:52.8]} 17. Bf3 {[%clk 0:01:28.7]} 17... h6 {[%clk
0:00:42.3]} 18. Bh4 {[%clk 0:01:26.7]} 18... e4 {[%clk 0:00:31.9]} 19. Re1
{[%clk 0:01:16]} 19... Qe5 {[%clk 0:00:28.4]} 20. Bxf6 {[%clk 0:01:08.8]} 20...
Qxf6 {[%clk 0:00:18.1]} 21. Bxe4 {[%clk 0:01:08.7]} 21... Nxe4 {[%clk 0:00:17]}
22. Qxe4 {[%clk 0:01:08.6]} 22... Qxc3 {[%clk 0:00:16]} 23. Qxc6 {[%clk
0:01:08.3]} 23... Rc8 {[%clk 0:00:15.7]} 24. Qd7 {[%clk 0:01:02.6]} 24... Qxc4
{[%clk 0:00:13.6]} 25. f6 {[%clk 0:00:56]} 25... gxf6 {[%clk 0:00:12.3]} 26.
Qxa7 {[%clk 0:00:52.4]} 26... Rc6 {[%clk 0:00:07.2]} 27. Rxb6 {[%clk 0:00:45.6]}
27... Qc5 {[%clk 0:00:04.3]} 28. Rb7 {[%clk 0:00:40.3]} 28... Qxa7 {[%clk
0:00:04.1]} 29. Rxa7 {[%clk 0:00:41.2]} 29... Rc2 {[%clk 0:00:03.2]} 30. g4
{[%clk 0:00:32.4]} 30... Kg7 {[%clk 0:00:02.5]} 31. Re3 {[%clk 0:00:26.4]} 31...
Kg6 {[%clk 0:00:01.2]} 32. Kg2 {[%clk 0:00:25.9]} 1-0

[Event "*** Titled Tuesday Blitz"]
[Site "Chess.com"]
[Date "2021.02.09"]
[Round "3"]
[White "Genghis_K"]
[Black "GregShahade"]
[Result "1/2-1/2"]
[WhiteElo "2922"]
[BlackElo "2688"]
[TimeControl "180+1"]
[EndTime "10:28:39 PST"]
[Termination "Game drawn by repetition"]

1. e4 {[%clk 0:03:00.9]} 1... e5 {[%clk 0:02:59.9]} 2. Nf3 {[%clk 0:03:00.5]}
2... Nc6 {[%clk 0:03:00.3]} 3. Bb5 {[%clk 0:03:00.3]} 3... a6 {[%clk 0:03:00.8]}
4. Ba4 {[%clk 0:03:00.6]} 4... Nf6 {[%clk 0:03:01]} 5. O-O {[%clk 0:03:00.9]}
5... Be7 {[%clk 0:03:01.6]} 6. Re1 {[%clk 0:02:58.5]} 6... b5 {[%clk 0:03:01.9]}
7. Bb3 {[%clk 0:02:58.8]} 7... O-O {[%clk 0:03:02.5]} 8. c3 {[%clk 0:02:55.6]}
8... d5 {[%clk 0:03:02.4]} 9. d4 {[%clk 0:02:55.7]} 9... dxe4 {[%clk 0:02:53.2]}
10. Nxe5 {[%clk 0:02:55]} 10... Nxe5 {[%clk 0:02:50.6]} 11. dxe5 {[%clk
0:02:55.9]} 11... Qxd1 {[%clk 0:02:50.1]} 12. Bxd1 {[%clk 0:02:56.3]} 12... Nd7
{[%clk 0:02:49.4]} 13. Rxe4 {[%clk 0:02:56.8]} 13... Nc5 {[%clk 0:02:42.6]} 14.
Rd4 {[%clk 0:02:57.2]} 14... Ne6 {[%clk 0:02:34.9]} 15. Rd5 {[%clk 0:02:57]}
15... Bb7 {[%clk 0:02:24.3]} 16. Rd7 {[%clk 0:02:54]} 16... Rfd8 {[%clk
0:02:22.1]} 17. Rxd8+ {[%clk 0:02:52.1]} 17... Rxd8 {[%clk 0:02:23]} 18. Be2
{[%clk 0:02:45.2]} 18... Bg5 {[%clk 0:01:20.3]} 19. Bxg5 {[%clk 0:02:25.7]}
19... Nxg5 {[%clk 0:01:21.2]} 20. Na3 {[%clk 0:02:16]} 20... Rd2 {[%clk
0:01:17.6]} 21. Rd1 {[%clk 0:02:15.6]} 21... Rxd1+ {[%clk 0:01:08.3]} 22. Bxd1
{[%clk 0:02:16.5]} 22... Kf8 {[%clk 0:01:03.2]} 23. Nc2 {[%clk 0:02:08.2]} 23...
Ke7 {[%clk 0:01:00.8]} 24. f4 {[%clk 0:02:02]} 24... Ne6 {[%clk 0:01:00.5]} 25.
g3 {[%clk 0:02:01.9]} 25... g5 {[%clk 0:01:00.7]} 26. f5 {[%clk 0:01:59.2]}
26... Nc5 {[%clk 0:01:00.9]} 27. Be2 {[%clk 0:01:53.9]} 27... Nd7 {[%clk
0:01:01]} 28. e6 {[%clk 0:01:38.5]} 28... fxe6 {[%clk 0:01:00.3]} 29. fxe6
{[%clk 0:01:39.4]} 29... Nc5 {[%clk 0:00:57.2]} 30. Kf2 {[%clk 0:01:38.3]} 30...
Na4 {[%clk 0:00:51]} 31. c4 {[%clk 0:01:28.8]} 31... bxc4 {[%clk 0:00:44.9]} 32.
Bxc4 {[%clk 0:01:29.7]} 32... Nxb2 {[%clk 0:00:45]} 33. Bb3 {[%clk 0:01:27.5]}
33... Nd3+ {[%clk 0:00:41.8]} 34. Ke3 {[%clk 0:01:27.9]} 34... Nc5 {[%clk
0:00:42.6]} 35. Nd4 {[%clk 0:01:20.4]} 35... Nxb3 {[%clk 0:00:41.7]} 36. Nxb3
{[%clk 0:01:20.5]} 36... Bd5 {[%clk 0:00:39.3]} 37. Nc5 {[%clk 0:01:21.1]} 37...
a5 {[%clk 0:00:29.1]} 38. a4 {[%clk 0:01:20.4]} 38... Bxe6 {[%clk 0:00:28.4]}
39. Nb7 {[%clk 0:01:20.3]} 39... Bd7 {[%clk 0:00:26.4]} 40. Nxa5 {[%clk
0:01:20.2]} 40... Bxa4 {[%clk 0:00:26.1]} 41. Kd4 {[%clk 0:01:21]} 41... Bd7
{[%clk 0:00:23.2]} 42. Ke5 {[%clk 0:01:20.2]} 42... c5 {[%clk 0:00:20.6]} 43.
Nc4 {[%clk 0:01:03.9]} 43... Be6 {[%clk 0:00:20]} 44. Nd2 {[%clk 0:01:03.6]}
44... c4 {[%clk 0:00:20.1]} 45. Ne4 {[%clk 0:00:58.6]} 45... h6 {[%clk
0:00:19.9]} 46. Kd4 {[%clk 0:00:55.6]} 46... Kf7 {[%clk 0:00:18]} 47. Ke5 {[%clk
0:00:37.3]} 47... Ke7 {[%clk 0:00:18]} 48. Kd4 {[%clk 0:00:37.4]} 48... Kf7
{[%clk 0:00:18.5]} 49. Ke5 {[%clk 0:00:37.8]} 49... Ke7 {[%clk 0:00:18.9]}
1/2-1/2

[Event "*** Titled Tuesday Blitz"]
[Site "Chess.com"]
[Date "2021.02.09"]
[Round "3"]
[White "Bigfish1995"]
[Black "emperor87"]
[Result "1-0"]
[WhiteElo "2994"]
[BlackElo "2709"]
[TimeControl "180+1"]
[EndTime "10:28:40 PST"]
[Termination "Bigfish1995 won on time"]

1. e4 {[%clk 0:02:50.3]} 1... e5 {[%clk 0:02:58.7]} 2. Nf3 {[%clk 0:02:49.9]}
2... Nc6 {[%clk 0:02:58.6]} 3. Bc4 {[%clk 0:02:49.6]} 3... Nf6 {[%clk 0:02:56]}
4. Ng5 {[%clk 0:02:48.6]} 4... d5 {[%clk 0:02:53]} 5. exd5 {[%clk 0:02:48.7]}
5... Na5 {[%clk 0:02:53]} 6. Bb5+ {[%clk 0:02:49]} 6... c6 {[%clk 0:02:53]} 7.
dxc6 {[%clk 0:02:49.6]} 7... bxc6 {[%clk 0:02:52.8]} 8. Bd3 {[%clk 0:02:49.9]}
8... Nd5 {[%clk 0:02:47.3]} 9. h4 {[%clk 0:02:42.3]} 9... Be7 {[%clk 0:02:28.4]}
10. Nc3 {[%clk 0:02:38.1]} 10... Nf4 {[%clk 0:02:26.6]} 11. Bf1 {[%clk
0:02:30.7]} 11... h6 {[%clk 0:01:56.6]} 12. Nf3 {[%clk 0:02:28.9]} 12... Bg4
{[%clk 0:01:52.3]} 13. d3 {[%clk 0:02:12.5]} 13... O-O {[%clk 0:01:41.2]} 14. g3
{[%clk 0:02:01.8]} 14... Ne6 {[%clk 0:01:03.4]} 15. Be2 {[%clk 0:01:57.3]} 15...
Bd6 {[%clk 0:00:40.9]} 16. h5 {[%clk 0:01:29.5]} 16... Rb8 {[%clk 0:00:39.5]}
17. Nh4 {[%clk 0:01:28.6]} 17... Bxe2 {[%clk 0:00:38.9]} 18. Nxe2 {[%clk
0:01:29.5]} 18... f5 {[%clk 0:00:38.1]} 19. Kf1 {[%clk 0:01:27.5]} 19... c5
{[%clk 0:00:37.9]} 20. b3 {[%clk 0:01:22.7]} 20... Nc6 {[%clk 0:00:37.2]} 21.
Ng1 {[%clk 0:01:16]} 21... f4 {[%clk 0:00:36.9]} 22. gxf4 {[%clk 0:01:11]} 22...
Nxf4 {[%clk 0:00:36.1]} 23. Bxf4 {[%clk 0:01:06.1]} 23... Rxf4 {[%clk
0:00:35.3]} 24. Ng6 {[%clk 0:01:06.7]} 24... Rf5 {[%clk 0:00:33.4]} 25. Qg4
{[%clk 0:01:05]} 25... Qf6 {[%clk 0:00:32.7]} 26. Nh3 {[%clk 0:00:56.8]} 26...
Rb4 {[%clk 0:00:30.3]} 27. c4 {[%clk 0:00:54.6]} 27... Rb7 {[%clk 0:00:23.4]}
28. Kg2 {[%clk 0:00:49.9]} 28... Rf7 {[%clk 0:00:19.9]} 29. Rhf1 {[%clk
0:00:49.1]} 29... Nd4 {[%clk 0:00:19.6]} 30. Nh4 {[%clk 0:00:44.9]} 30... Rf3
{[%clk 0:00:11.7]} 31. Nxf3 {[%clk 0:00:41.2]} 31... Nxf3 {[%clk 0:00:11.8]} 32.
Ng1 {[%clk 0:00:39.3]} 32... e4 {[%clk 0:00:11.6]} 33. Nxf3 {[%clk 0:00:36.3]}
33... exf3+ {[%clk 0:00:11]} 34. Kh3 {[%clk 0:00:36.7]} 34... Qe5 {[%clk
0:00:03.4]} 35. Rh1 {[%clk 0:00:36.7]} 35... Rf4 {[%clk 0:00:02.8]} 36. Rae1
{[%clk 0:00:37.2]} 1-0

[Event "*** Titled Tuesday Blitz"]
[Site "Chess.com"]
[Date "2021.02.09"]
[Round "3"]
[White "bangchess21"]
[Black "yuki_chess123"]
[Result "1-0"]
[WhiteElo "2723"]
[BlackElo "2302"]
[TimeControl "180+1"]
[EndTime "10:28:40 PST"]
[Termination "bangchess21 won on time"]

1. Nf3 {[%clk 0:03:00.9]} 1... g6 {[%clk 0:02:59.4]} 2. g3 {[%clk 0:02:59.8]}
2... Bg7 {[%clk 0:02:59.1]} 3. Bg2 {[%clk 0:03:00.4]} 3... d6 {[%clk 0:02:57.2]}
4. O-O {[%clk 0:02:59.8]} 4... e5 {[%clk 0:02:56]} 5. d3 {[%clk 0:03:00]} 5...
Nf6 {[%clk 0:02:55.1]} 6. c4 {[%clk 0:02:58.2]} 6... O-O {[%clk 0:02:55]} 7. Nc3
{[%clk 0:02:58.8]} 7... a5 {[%clk 0:02:54]} 8. Rb1 {[%clk 0:02:58.5]} 8... Na6
{[%clk 0:02:51.5]} 9. a3 {[%clk 0:02:57.7]} 9... Bd7 {[%clk 0:02:48.2]} 10. b4
{[%clk 0:02:52.8]} 10... axb4 {[%clk 0:02:48]} 11. axb4 {[%clk 0:02:53.7]} 11...
c6 {[%clk 0:02:48.7]} 12. Ne1 {[%clk 0:02:47.2]} 12... Qc8 {[%clk 0:02:41.8]}
13. b5 {[%clk 0:02:41.5]} 13... Nc5 {[%clk 0:02:40.9]} 14. Be3 {[%clk
0:02:41.1]} 14... Bh3 {[%clk 0:02:31.8]} 15. bxc6 {[%clk 0:02:22.6]} 15... Bxg2
{[%clk 0:02:22.2]} 16. Nxg2 {[%clk 0:02:23.5]} 16... Qxc6 {[%clk 0:02:15.6]} 17.
Bxc5 {[%clk 0:02:17.4]} 17... dxc5 {[%clk 0:02:12.7]} 18. Ne3 {[%clk 0:02:12.8]}
18... Qe6 {[%clk 0:01:10.6]} 19. Ned5 {[%clk 0:02:07.4]} 19... Nxd5 {[%clk
0:00:33.4]} 20. Nxd5 {[%clk 0:02:07.3]} 20... Rab8 {[%clk 0:00:32.2]} 21. Rb6
{[%clk 0:02:05.2]} 21... Qh3 {[%clk 0:00:28.2]} 22. Qb3 {[%clk 0:01:59.1]} 22...
h5 {[%clk 0:00:24.5]} 23. Rxb7 {[%clk 0:01:56.6]} 23... Rxb7 {[%clk 0:00:24.4]}
24. Qxb7 {[%clk 0:01:57.5]} 24... h4 {[%clk 0:00:25]} 25. Ne3 {[%clk 0:01:17]}
25... hxg3 {[%clk 0:00:21.4]} 26. fxg3 {[%clk 0:01:12.8]} 26... Bh6 {[%clk
0:00:20.6]} 27. Nd5 {[%clk 0:01:02.8]} 27... Bg7 {[%clk 0:00:11.2]} 28. Qe7
{[%clk 0:00:58.1]} 28... e4 {[%clk 0:00:08.8]} 29. Qxe4 {[%clk 0:00:53.3]} 29...
Bd4+ {[%clk 0:00:07.6]} 30. e3 {[%clk 0:00:53.9]} 30... Bg7 {[%clk 0:00:07.4]}
31. Rf4 {[%clk 0:00:45.9]} 31... g5 {[%clk 0:00:01.9]} 32. Qf5 {[%clk
0:00:23.8]} 1-0

[Event "*** Titled Tuesday Blitz"]
[Site "Chess.com"]
[Date "2021.02.09"]
[Round "3"]
[White "Kobalia"]
[Black "hansen"]
[Result "0-1"]
[WhiteElo "2689"]
[BlackElo "2955"]
[TimeControl "180+1"]
[EndTime "10:28:42 PST"]
[Termination "hansen won on time"]

1. e4 {[%clk 0:03:00.9]} 1... c5 {[%clk 0:02:51.7]} 2. Nf3 {[%clk 0:03:00.2]}
2... e6 {[%clk 0:02:52.1]} 3. g3 {[%clk 0:02:59.8]} 3... Nc6 {[%clk 0:02:50.3]}
4. Bg2 {[%clk 0:02:59.6]} 4... e5 {[%clk 0:02:51]} 5. O-O {[%clk 0:02:58.6]}
5... Nf6 {[%clk 0:02:51.5]} 6. d3 {[%clk 0:02:55.1]} 6... Be7 {[%clk 0:02:51.8]}
7. Na3 {[%clk 0:02:54.5]} 7... O-O {[%clk 0:02:51.8]} 8. Nc4 {[%clk 0:02:54.4]}
8... d6 {[%clk 0:02:52.3]} 9. c3 {[%clk 0:02:42.7]} 9... h6 {[%clk 0:02:49.7]}
10. Nfd2 {[%clk 0:02:41.4]} 10... Be6 {[%clk 0:02:45.9]} 11. f4 {[%clk
0:02:40.4]} 11... exf4 {[%clk 0:02:44.7]} 12. gxf4 {[%clk 0:02:40.2]} 12... d5
{[%clk 0:02:45.2]} 13. Ne3 {[%clk 0:02:39.1]} 13... d4 {[%clk 0:02:44.8]} 14.
cxd4 {[%clk 0:02:30.3]} 14... cxd4 {[%clk 0:02:21.8]} 15. Nc2 {[%clk 0:02:13.6]}
15... Rc8 {[%clk 0:02:15]} 16. Nf3 {[%clk 0:02:12.8]} 16... Ng4 {[%clk
0:01:56.2]} 17. h3 {[%clk 0:02:07]} 17... Ne3 {[%clk 0:01:56.5]} 18. Nxe3 {[%clk
0:02:06.3]} 18... dxe3 {[%clk 0:01:57.4]} 19. Bxe3 {[%clk 0:02:06.4]} 19... Nb4
{[%clk 0:01:58.1]} 20. Rc1 {[%clk 0:01:19.8]} 20... Qxd3 {[%clk 0:01:46]} 21.
Qxd3 {[%clk 0:01:11]} 21... Nxd3 {[%clk 0:01:45.9]} 22. Rxc8 {[%clk 0:01:10.4]}
22... Rxc8 {[%clk 0:01:46.5]} 23. b3 {[%clk 0:01:10.2]} 23... Nb4 {[%clk
0:00:47.1]} 24. Nd4 {[%clk 0:01:07.1]} 24... Bd7 {[%clk 0:00:46.5]} 25. e5
{[%clk 0:00:59.1]} 25... Rc3 {[%clk 0:00:43.9]} 26. Bf2 {[%clk 0:00:21.7]} 26...
Nd3 {[%clk 0:00:43.8]} 27. Kh2 {[%clk 0:00:08]} 27... Nxf2 {[%clk 0:00:22.1]}
28. Rxf2 {[%clk 0:00:07.6]} 28... Rd3 {[%clk 0:00:22.6]} 29. Nc2 {[%clk
0:00:06]} 29... Bh4 {[%clk 0:00:20.2]} 30. Re2 {[%clk 0:00:05.2]} 30... Bg3+
{[%clk 0:00:19.2]} 31. Kg1 {[%clk 0:00:03.5]} 31... Rd1+ {[%clk 0:00:18.4]} 32.
Bf1 {[%clk 0:00:01.5]} 32... Bxh3 {[%clk 0:00:18.6]} 33. Ne3 {[%clk 0:00:01.7]}
33... Ra1 {[%clk 0:00:19.2]} 0-1

[Event "*** Titled Tuesday Blitz"]
[Site "Chess.com"]
[Date "2021.02.09"]
[Round "3"]
[White "Gusarov91"]
[Black "Orest_Vovk"]
[Result "1/2-1/2"]
[WhiteElo "2215"]
[BlackElo "2405"]
[TimeControl "180+1"]
[EndTime "10:28:42 PST"]
[Termination "Game drawn by repetition"]

1. d4 {[%clk 0:03:00.9]} 1... d5 {[%clk 0:02:54.1]} 2. Nf3 {[%clk 0:03:01.2]}
2... Bf5 {[%clk 0:01:19.4]} 3. c4 {[%clk 0:03:00.9]} 3... Nf6 {[%clk 0:01:09]}
4. cxd5 {[%clk 0:02:54.2]} 4... Nxd5 {[%clk 0:01:04.8]} 5. Nc3 {[%clk 0:02:50]}
5... Nxc3 {[%clk 0:00:58.6]} 6. bxc3 {[%clk 0:02:50.9]} 6... e6 {[%clk
0:00:59.2]} 7. Qb3 {[%clk 0:02:48.9]} 7... Qc8 {[%clk 0:00:54.5]} 8. Bf4 {[%clk
0:02:48.2]} 8... Bd6 {[%clk 0:00:53.5]} 9. Bxd6 {[%clk 0:02:40]} 9... cxd6
{[%clk 0:00:54.4]} 10. e3 {[%clk 0:02:40.7]} 10... O-O {[%clk 0:00:53.8]} 11.
Be2 {[%clk 0:02:40.5]} 11... Nc6 {[%clk 0:00:53.1]} 12. O-O {[%clk 0:02:38]}
12... Na5 {[%clk 0:00:53.1]} 13. Qb4 {[%clk 0:02:38.2]} 13... Qc7 {[%clk
0:00:51.2]} 14. c4 {[%clk 0:02:37.8]} 14... b6 {[%clk 0:00:51.3]} 15. Rfc1
{[%clk 0:02:36.3]} 15... Rac8 {[%clk 0:00:50.9]} 16. h3 {[%clk 0:02:35]} 16...
h6 {[%clk 0:00:50.4]} 17. Rc3 {[%clk 0:02:24.4]} 17... Be4 {[%clk 0:00:49]} 18.
Nd2 {[%clk 0:02:22.5]} 18... Ba8 {[%clk 0:00:48.4]} 19. Rac1 {[%clk 0:02:22.1]}
19... Qb7 {[%clk 0:00:47.7]} 20. Bf3 {[%clk 0:02:22.2]} 20... Qe7 {[%clk
0:00:47.1]} 21. Bxa8 {[%clk 0:02:20.8]} 21... Rxa8 {[%clk 0:00:48]} 22. c5
{[%clk 0:02:21.3]} 22... dxc5 {[%clk 0:00:48.3]} 23. dxc5 {[%clk 0:02:21.5]}
23... Nb7 {[%clk 0:00:44.3]} 24. Nb3 {[%clk 0:02:17]} 24... Rac8 {[%clk
0:00:41.9]} 25. Qb5 {[%clk 0:02:10.3]} 25... Nxc5 {[%clk 0:00:41.8]} 26. Nxc5
{[%clk 0:02:10.3]} 26... Rxc5 {[%clk 0:00:42.4]} 27. Rxc5 {[%clk 0:02:10.6]}
27... bxc5 {[%clk 0:00:43.3]} 28. Qxc5 {[%clk 0:02:10.6]} 28... Qxc5 {[%clk
0:00:39]} 29. Rxc5 {[%clk 0:02:11.5]} 29... Rb8 {[%clk 0:00:39.2]} 30. Rc7
{[%clk 0:02:10.9]} 30... Rb1+ {[%clk 0:00:37.9]} 31. Kh2 {[%clk 0:02:10.9]}
31... Rb2 {[%clk 0:00:38.8]} 32. Rxa7 {[%clk 0:02:11.1]} 32... Rxf2 {[%clk
0:00:38.8]} 33. Kg3 {[%clk 0:02:11.6]} 33... Re2 {[%clk 0:00:37.7]} 34. Kf3
{[%clk 0:02:11.9]} 34... Rb2 {[%clk 0:00:37.5]} 35. a4 {[%clk 0:02:10.5]} 35...
Ra2 {[%clk 0:00:37]} 36. h4 {[%clk 0:02:10.2]} 36... g5 {[%clk 0:00:36.8]} 37.
hxg5 {[%clk 0:02:09.2]} 37... hxg5 {[%clk 0:00:37.7]} 38. g4 {[%clk 0:02:09.4]}
38... Kg7 {[%clk 0:00:38]} 39. Ra5 {[%clk 0:02:07.5]} 39... Kf6 {[%clk
0:00:37.3]} 40. Ra7 {[%clk 0:02:06.8]} 40... Kg6 {[%clk 0:00:35]} 41. a5 {[%clk
0:02:06.5]} 41... f5 {[%clk 0:00:32.8]} 42. Ra8 {[%clk 0:02:06.1]} 42... Ra3
{[%clk 0:00:30.3]} 43. Rg8+ {[%clk 0:02:03]} 43... Kf7 {[%clk 0:00:29]} 44. Rxg5
{[%clk 0:02:02.3]} 44... Rxa5 {[%clk 0:00:29]} 45. gxf5 {[%clk 0:02:01.9]} 45...
Rxf5+ {[%clk 0:00:28.5]} 46. Kg4 {[%clk 0:02:00.7]} 46... Rf1 {[%clk 0:00:25.6]}
47. Ra5 {[%clk 0:02:00.4]} 47... Kf6 {[%clk 0:00:24.1]} 48. Rb5 {[%clk
0:02:00.2]} 48... Kg6 {[%clk 0:00:21.8]} 49. Rb6 {[%clk 0:01:59.7]} 49... Kf6
{[%clk 0:00:21.9]} 50. Ra6 {[%clk 0:01:58.4]} 50... Ke5 {[%clk 0:00:22]} 51. Ra4
{[%clk 0:01:55.6]} 51... Rf8 {[%clk 0:00:20.1]} 52. Kg3 {[%clk 0:01:55.7]} 52...
Kd5 {[%clk 0:00:19.5]} 53. Rd4+ {[%clk 0:01:54.8]} 53... Ke5 {[%clk 0:00:18.7]}
54. Rh4 {[%clk 0:01:55.4]} 54... Rf7 {[%clk 0:00:17]} 55. Rh6 {[%clk 0:01:54]}
55... Kd5 {[%clk 0:00:16.7]} 56. Kg2 {[%clk 0:01:51.9]} 56... e5 {[%clk
0:00:16.3]} 57. Rh4 {[%clk 0:01:52.1]} 57... e4 {[%clk 0:00:15]} 58. Rg4 {[%clk
0:01:52.5]} 58... Rf3 {[%clk 0:00:13.5]} 59. Rg3 {[%clk 0:01:50.8]} 59... Rxg3+
{[%clk 0:00:12.9]} 60. Kxg3 {[%clk 0:01:51.4]} 60... Kc4 {[%clk 0:00:13.3]} 61.
Kg4 {[%clk 0:01:52]} 61... Kd5 {[%clk 0:00:08.1]} 62. Kf5 {[%clk 0:01:52.2]}
62... Kd6 {[%clk 0:00:07.8]} 63. Kf6 {[%clk 0:01:52.5]} 63... Kd5 {[%clk
0:00:07.9]} 64. Kf5 {[%clk 0:01:52.9]} 64... Kd6 {[%clk 0:00:08.1]} 65. Kf4
{[%clk 0:01:53.6]} 65... Kd5 {[%clk 0:00:07.9]} 66. Kg5 {[%clk 0:01:52.3]} 66...
Ke5 {[%clk 0:00:07.3]} 67. Kg4 {[%clk 0:01:52.1]} 67... Ke6 {[%clk 0:00:05.6]}
68. Kf4 {[%clk 0:01:51.3]} 68... Kd5 {[%clk 0:00:05.9]} 69. Kf5 {[%clk
0:01:51.8]} 1/2-1/2

[Event "*** Titled Tuesday Blitz"]
[Site "Chess.com"]
[Date "2021.02.09"]
[Round "3"]
[White "TigranMukhutdinov"]
[Black "dpopadic"]
[Result "1-0"]
[WhiteElo "2609"]
[BlackElo "2331"]
[TimeControl "180+1"]
[EndTime "10:28:45 PST"]
[Termination "TigranMukhutdinov won on time"]

1. Nf3 {[%clk 0:03:00.9]} 1... Nf6 {[%clk 0:02:58.8]} 2. g3 {[%clk 0:03:00.8]}
2... g6 {[%clk 0:02:59.4]} 3. b3 {[%clk 0:03:01.3]} 3... Bg7 {[%clk 0:03:00]} 4.
Bb2 {[%clk 0:03:02]} 4... O-O {[%clk 0:02:59.6]} 5. Bg2 {[%clk 0:03:02.1]} 5...
d6 {[%clk 0:03:00.3]} 6. d4 {[%clk 0:03:02.2]} 6... c5 {[%clk 0:03:00.8]} 7. c4
{[%clk 0:03:02.3]} 7... Nc6 {[%clk 0:03:00.8]} 8. d5 {[%clk 0:02:57.8]} 8... Na5
{[%clk 0:02:59.8]} 9. O-O {[%clk 0:02:57.6]} 9... a6 {[%clk 0:02:59.9]} 10. Nc3
{[%clk 0:02:57.5]} 10... Bd7 {[%clk 0:02:59.8]} 11. e4 {[%clk 0:02:38.4]} 11...
Nxe4 {[%clk 0:02:54.6]} 12. Qc2 {[%clk 0:02:35.9]} 12... Nxc3 {[%clk 0:02:52]}
13. Bxc3 {[%clk 0:02:36.8]} 13... Bxc3 {[%clk 0:02:48.4]} 14. Qxc3 {[%clk
0:02:37.7]} 14... b5 {[%clk 0:02:47.7]} 15. Rfe1 {[%clk 0:02:31.3]} 15... bxc4
{[%clk 0:02:46.8]} 16. bxc4 {[%clk 0:02:32.2]} 16... Rb8 {[%clk 0:02:44.7]} 17.
Re4 {[%clk 0:02:31.6]} 17... Bf5 {[%clk 0:02:37.7]} 18. Rh4 {[%clk 0:02:29.7]}
18... f6 {[%clk 0:02:05.4]} 19. Re1 {[%clk 0:02:04.2]} 19... Re8 {[%clk
0:02:03.5]} 20. Qd2 {[%clk 0:01:57.3]} 20... Rf8 {[%clk 0:01:55.7]} 21. g4
{[%clk 0:01:45]} 21... Bd7 {[%clk 0:01:49.6]} 22. Qd3 {[%clk 0:01:33.8]} 22...
Rf7 {[%clk 0:01:44.4]} 23. Rh6 {[%clk 0:01:31]} 23... Rg7 {[%clk 0:01:39.5]} 24.
h3 {[%clk 0:01:29.5]} 24... Qb6 {[%clk 0:01:36.6]} 25. Nd2 {[%clk 0:01:24.9]}
25... Qc7 {[%clk 0:01:20.1]} 26. Be4 {[%clk 0:01:20.7]} 26... Be8 {[%clk
0:01:13.6]} 27. Qc3 {[%clk 0:01:18.6]} 27... Nb7 {[%clk 0:01:03.7]} 28. Rb1
{[%clk 0:01:13.2]} 28... Nd8 {[%clk 0:01:02.7]} 29. Rxb8 {[%clk 0:01:11.4]}
29... Qxb8 {[%clk 0:01:01.9]} 30. Qa5 {[%clk 0:01:11.9]} 30... Nf7 {[%clk
0:00:55.8]} 31. Rh4 {[%clk 0:01:11.6]} 31... Qb4 {[%clk 0:00:45.3]} 32. Qxb4
{[%clk 0:01:05.3]} 32... cxb4 {[%clk 0:00:44.3]} 33. Nb3 {[%clk 0:01:06.2]}
33... Ne5 {[%clk 0:00:39.8]} 34. c5 {[%clk 0:01:03.3]} 34... dxc5 {[%clk
0:00:38]} 35. Nxc5 {[%clk 0:01:04.2]} 35... a5 {[%clk 0:00:28.9]} 36. f4 {[%clk
0:01:03.4]} 36... Nc4 {[%clk 0:00:14.3]} 37. Ne6 {[%clk 0:00:56.6]} 37... Bf7
{[%clk 0:00:13.5]} 38. Nxg7 {[%clk 0:00:55.7]} 38... Kxg7 {[%clk 0:00:13.4]} 39.
g5 {[%clk 0:00:56.2]} 39... f5 {[%clk 0:00:11.2]} 40. Bf3 {[%clk 0:00:56]} 40...
Ne3 {[%clk 0:00:09.7]} 41. Kf2 {[%clk 0:00:55.4]} 41... Nxd5 {[%clk 0:00:09]}
42. Rh6 {[%clk 0:00:51]} 42... Nc3 {[%clk 0:00:08.6]} 43. h4 {[%clk 0:00:51]}
43... Nxa2 {[%clk 0:00:04.9]} 44. h5 {[%clk 0:00:51.9]} 44... b3 {[%clk
0:00:03.9]} 45. hxg6 {[%clk 0:00:52.1]} 45... hxg6 {[%clk 0:00:02.3]} 46. Rh1
{[%clk 0:00:51.9]} 1-0